fUST/lending_fUST_20260508
["ID","MTS","AMOUNT","RATE_DAILY","PERIOD"]
[421857370,1778236236000,-500.0,0.00010215,2]
[421857364,1778236236000,-500.0,0.00010215,2]
[421857439,1778236238000,-42772.01148746,0.00010216,2]
[421857441,1778236238000,-20665.42471379,0.00010216,2]
[421857437,1778236238000,-1600.67691427,0.00010216,2]
[421857435,1778236238000,-37513.80741858,0.00010216,2]
[421857508,1778236243000,-382.74849313,0.00010114,2]
[421857507,1778236243000,-1990.36528009,0.00010114,2]
[421857518,1778236246000,-2626.88622678,0.00010114,2]
[421857520,1778236246000,-3576.39150566,0.00010216,2]
[421857519,1778236246000,-931.67488791,0.00010116,2]
[421857583,1778237432000,-631.87264066,8.788e-05,2]
[421857694,1778237438000,-168.63329388,8.877e-05,2]
[421857692,1778237438000,-4368.12735934,8.788e-05,2]
[421858947,1778237448000,-755.11298001,8.788e-05,2]
[421859038,1778237449000,-720.28,0.00010958,2]
[421859040,1778237449000,-500.0,0.00010958,2]
[421859041,1778237449000,-500.0,0.00010958,2]
[421859030,1778237449000,-500.0,0.00010958,2]
[421859021,1778237449000,-842.37,0.00010958,2]
[421859022,1778237449000,-500.0,0.00010958,2]
[421859028,1778237449000,-500.0,0.00010958,2]
[421859024,1778237449000,-500.0,0.00010958,2]
[421859034,1778237449000,-500.0,0.00010958,2]
[421859013,1778237449000,-500.0,0.00010958,2]
[421859026,1778237449000,-500.0,0.00010958,2]
[421859036,1778237449000,-747.72,0.00010958,2]
[421859053,1778237449000,-500.0,0.00010958,2]
[421859043,1778237449000,-500.0,0.00010958,2]
[421859045,1778237449000,-465.62,0.00010958,2]
[421859049,1778237449000,-500.0,0.00010958,2]
[421859017,1778237449000,-500.0,0.00010958,2]
[421859047,1778237449000,-776.62,0.00010958,2]
[421859067,1778237449000,-1104.17,0.00010958,2]
[421859051,1778237449000,-500.0,0.00010958,2]
[421859055,1778237449000,-500.0,0.00010958,2]
[421859057,1778237449000,-1339.58,0.00010958,2]
[421859068,1778237449000,-500.0,0.00010958,2]
[421859058,1778237449000,-585.7,0.00010958,2]
[421859062,1778237449000,-1828.79,0.00010958,2]
[421859065,1778237449000,-500.0,0.00010958,2]
[421859032,1778237449000,-500.0,0.00010958,2]
[421859019,1778237449000,-500.0,0.00010958,2]
[421859015,1778237449000,-500.0,0.00010958,2]
[421859009,1778237449000,-500.0,0.00010958,2]
[421859060,1778237449000,-500.0,0.00010958,2]
[421858963,1778237449000,-500.57196018,8.877e-05,2]
[421858967,1778237449000,-203.7980119,0.00010165,2]
[421858965,1778237449000,-364.51558639,9.013e-05,2]
[421858960,1778237449000,-879.22753173,8.788e-05,2]
[421858971,1778237449000,-152.0,0.00010424,7]
[421858973,1778237449000,-152.0,0.00010424,7]
[421858978,1778237449000,-555.0,0.0001067,2]
[421858980,1778237449000,-555.0,0.0001067,2]
[421858969,1778237449000,-1151.3112776,0.00010165,2]
[421858974,1778237449000,-300.0,0.00010669,2]
[421858976,1778237449000,-2757.08983131,0.0001067,2]
[421858985,1778237449000,-537.6845,0.00010951,2]
[421858989,1778237449000,-1957.856,0.00010951,2]
[421858991,1778237449000,-259.17126174,0.00010955,2]
[421858983,1778237449000,-162.380719,0.00010951,2]
[421858982,1778237449000,-979.39262558,0.00010858,2]
[421858987,1778237449000,-151.0,0.00010951,2]
[421858993,1778237449000,-156.545,0.00010957,2]
[421858997,1778237449000,-500.0,0.00010958,2]
[421859002,1778237449000,-868.9024,0.00010958,2]
[421859000,1778237449000,-500.0,0.00010958,2]
[421858999,1778237449000,-500.0,0.00010958,2]
[421859004,1778237449000,-500.0,0.00010958,2]
[421858995,1778237449000,-255.0,0.00010957,2]
[421859006,1778237449000,-500.0,0.00010958,2]
[421859011,1778237449000,-500.0,0.00010958,2]
[421859008,1778237449000,-500.0,0.00010958,2]
[421859070,1778237449000,-500.0,0.00010958,2]
[421859112,1778237449000,-430.12839194,0.00011013,2]
[421859086,1778237449000,-511.11,0.00010958,2]
[421859105,1778237449000,-1742.71,0.00010958,2]
[421859108,1778237449000,-500.0,0.00010958,2]
[421859114,1778237449000,-468.23482537,0.00011132,2]
[421859113,1778237449000,-1060.48236953,0.00011061,2]
[421859110,1778237449000,-796.52,0.00010958,2]
[421859115,1778237449000,-151.0,0.00011231,2]
[421859109,1778237449000,-500.0,0.00010958,2]
[421859137,1778237449000,-500.0,0.00011232,2]
[421859111,1778237449000,-5426.21462975,0.00010985,2]
[421859122,1778237449000,-500.0,0.00011232,2]
[421859120,1778237449000,-151.0,0.00011231,2]
[421859123,1778237449000,-500.0,0.00011232,2]
[421859118,1778237449000,-420.39166484,0.00011231,2]
[421859130,1778237449000,-500.0,0.00011232,2]
[421859133,1778237449000,-500.0,0.00011232,2]
[421859127,1778237449000,-500.0,0.00011232,2]
[421859121,1778237449000,-500.0,0.00011232,2]
[421859125,1778237449000,-500.0,0.00011232,2]
[421859128,1778237449000,-303.35,0.00011232,2]
[421859132,1778237449000,-500.0,0.00011232,2]
[421859131,1778237449000,-500.0,0.00011232,2]
[421859124,1778237449000,-868.9024,0.00011232,2]
[421859129,1778237449000,-500.0,0.00011232,2]
[421859135,1778237449000,-155.502852,0.00011232,2]
[421859134,1778237449000,-151.0,0.00011232,2]
[421859136,1778237449000,-842.37,0.00011232,2]
[421859126,1778237449000,-500.0,0.00011232,2]
[421859116,1778237449000,-500.0,0.00011231,2]
[421859072,1778237449000,-500.0,0.00010958,2]
[421859106,1778237449000,-652.37,0.00010958,2]
[421859119,1778237449000,-151.0,0.00011231,2]
[421859085,1778237449000,-500.0,0.00010958,2]
[421859087,1778237449000,-500.0,0.00010958,2]
[421859080,1778237449000,-500.0,0.00010958,2]
[421859089,1778237449000,-500.0,0.00010958,2]
[421859083,1778237449000,-821.99,0.00010958,2]
[421859074,1778237449000,-845.95,0.00010958,2]
[421859082,1778237449000,-500.0,0.00010958,2]
[421859077,1778237449000,-500.0,0.00010958,2]
[421859088,1778237449000,-787.85,0.00010958,2]
[421859084,1778237449000,-500.0,0.00010958,2]
[421859079,1778237449000,-9994.16,0.00010958,2]
[421859081,1778237449000,-2013.1,0.00010958,2]
[421859078,1778237449000,-1084.76,0.00010958,2]
[421859092,1778237449000,-1031.51,0.00010958,2]
[421859117,1778237449000,-335.98983253,0.00011231,2]
[421859090,1778237449000,-559.71,0.00010958,2]
[421859100,1778237449000,-2742.13,0.00010958,2]
[421859103,1778237449000,-500.0,0.00010958,2]
[421859097,1778237449000,-740.75,0.00010958,2]
[421859096,1778237449000,-500.0,0.00010958,2]
[421859101,1778237449000,-500.0,0.00010958,2]
[421859098,1778237449000,-500.0,0.00010958,2]
[421859091,1778237449000,-1327.97,0.00010958,2]
[421859094,1778237449000,-615.42,0.00010958,2]
[421859095,1778237449000,-500.0,0.00010958,2]
[421859093,1778237449000,-1445.84,0.00010958,2]
[421859099,1778237449000,-500.0,0.00010958,2]
[421859195,1778237450000,-500.0,0.00011232,2]
[421859190,1778237450000,-615.42,0.00011232,2]
[421859191,1778237450000,-500.0,0.00011232,2]
[421859189,1778237450000,-1445.84,0.00011232,2]
[421859187,1778237450000,-1327.97,0.00011232,2]
[421859178,1778237450000,-500.0,0.00011232,2]
[421859184,1778237450000,-787.85,0.00011232,2]
[421859185,1778237450000,-500.0,0.00011232,2]
[421859182,1778237450000,-511.11,0.00011232,2]
[421859176,1778237450000,-500.0,0.00011232,2]
[421859175,1778237450000,-9994.16,0.00011232,2]
[421859192,1778237450000,-500.0,0.00011232,2]
[421859186,1778237450000,-559.71,0.00011232,2]
[421859194,1778237450000,-500.0,0.00011232,2]
[421859206,1778237450000,-151.0,0.00011232,2]
[421859193,1778237450000,-740.75,0.00011232,2]
[421859183,1778237450000,-500.0,0.00011232,2]
[421859209,1778237450000,-500.0,0.00011232,2]
[421859208,1778237450000,-652.37,0.00011232,2]
[421859211,1778237450000,-500.0,0.00011232,2]
[421859196,1778237450000,-2742.13,0.00011232,2]
[421859214,1778237450000,-1411.0,0.00011261,2]
[421859213,1778237450000,-796.52,0.00011232,2]
[421859216,1778237450000,-2215.0,0.00011261,2]
[421859198,1778237450000,-500.0,0.00011232,2]
[421859204,1778237450000,-151.0,0.00011232,2]
[421859203,1778237450000,-151.0,0.00011232,2]
[421859179,1778237450000,-821.99,0.00011232,2]
[421859200,1778237450000,-500.0,0.00011232,2]
[421859188,1778237450000,-1031.51,0.00011232,2]
[421859174,1778237450000,-1084.76,0.00011232,2]
[421859162,1778237450000,-500.0,0.00011232,2]
[421859172,1778237450000,-845.95,0.00011232,2]
[421859145,1778237450000,-500.0,0.00011232,2]
[421859147,1778237450000,-500.0,0.00011232,2]
[421859138,1778237450000,-193.54,0.00011232,2]
[421859202,1778237450000,-1742.71,0.00011232,2]
[421859152,1778237450000,-720.28,0.00011232,2]
[421859154,1778237450000,-500.0,0.00011232,2]
[421859153,1778237450000,-500.0,0.00011232,2]
[421859141,1778237450000,-500.0,0.00011232,2]
[421859139,1778237450000,-500.0,0.00011232,2]
[421859143,1778237450000,-500.0,0.00011232,2]
[421859155,1778237450000,-151.0,0.00011232,2]
[421859157,1778237450000,-500.0,0.00011232,2]
[421859159,1778237450000,-500.0,0.00011232,2]
[421859161,1778237450000,-500.0,0.00011232,2]
[421859164,1778237450000,-585.7,0.00011232,2]
[421859156,1778237450000,-151.0,0.00011232,2]
[421859158,1778237450000,-776.62,0.00011232,2]
[421859160,1778237450000,-500.0,0.00011232,2]
[421859165,1778237450000,-500.0,0.00011232,2]
[421859168,1778237450000,-1104.17,0.00011232,2]
[421859166,1778237450000,-1828.79,0.00011232,2]
[421859163,1778237450000,-1339.58,0.00011232,2]
[421859167,1778237450000,-500.0,0.00011232,2]
[421859170,1778237450000,-500.0,0.00011232,2]
[421859180,1778237450000,-500.0,0.00011232,2]
[421859181,1778237450000,-500.0,0.00011232,2]
[421859169,1778237450000,-500.0,0.00011232,2]
[421859171,1778237450000,-500.0,0.00011232,2]
[421859173,1778237450000,-500.0,0.00011232,2]
[421859177,1778237450000,-2013.1,0.00011232,2]
[421859149,1778237450000,-747.72,0.00011232,2]
[421859219,1778237450000,-442.0,0.00011261,2]
[421859231,1778237450000,-160.0,0.00011401,2]
[421859264,1778237450000,-500.0,0.00011506,2]
[421859262,1778237450000,-500.0,0.00011506,2]
[421859267,1778237450000,-500.0,0.00011506,2]
[421859265,1778237450000,-1339.58,0.00011506,2]
[421859263,1778237450000,-500.0,0.00011506,2]
[421859266,1778237450000,-585.7,0.00011506,2]
[421859274,1778237450000,-845.95,0.00011506,2]
[421859273,1778237450000,-500.0,0.00011506,2]
[421859268,1778237450000,-1828.79,0.00011506,2]
[421859269,1778237450000,-500.0,0.00011506,2]
[421859270,1778237450000,-1104.17,0.00011506,2]
[421859272,1778237450000,-500.0,0.00011506,2]
[421859271,1778237450000,-500.0,0.00011506,2]
[421859276,1778237450000,-1084.76,0.00011506,2]
[421859253,1778237450000,-747.72,0.00011506,2]
[421859284,1778237450000,-511.11,0.00011506,2]
[421859277,1778237450000,-9994.16,0.00011506,2]
[421859287,1778237450000,-500.0,0.00011506,2]
[421859285,1778237450000,-500.0,0.00011506,2]
[421859286,1778237450000,-787.85,0.00011506,2]
[421859288,1778237450000,-559.71,0.00011506,2]
[421859278,1778237450000,-500.0,0.00011506,2]
[421859281,1778237450000,-821.99,0.00011506,2]
[421859279,1778237450000,-2013.1,0.00011506,2]
[421859280,1778237450000,-500.0,0.00011506,2]
[421859282,1778237450000,-500.0,0.00011506,2]
[421859283,1778237450000,-500.0,0.00011506,2]
[421859229,1778237450000,-160.0,0.00011401,2]
[421859291,1778237450000,-1445.84,0.00011506,2]
[421859290,1778237450000,-1031.51,0.00011506,2]
[421859275,1778237450000,-500.0,0.00011506,2]
[421859250,1778237450000,-500.0,0.00011506,2]
[421859289,1778237450000,-1327.97,0.00011506,2]
[421859252,1778237450000,-500.0,0.00011506,2]
[421859255,1778237450000,-500.0,0.00011506,2]
[421859221,1778237450000,-256.79,0.00011271,2]
[421859226,1778237450000,-160.0,0.00011401,2]
[421859236,1778237450000,-500.0,0.00011506,2]
[421859223,1778237450000,-151.3971218,0.00011298,2]
[421859224,1778237450000,-161.58879827,0.00011401,2]
[421859237,1778237450000,-868.9024,0.00011506,2]
[421859233,1778237450000,-500.0,0.00011506,2]
[421859238,1778237450000,-500.0,0.00011506,2]
[421859228,1778237450000,-160.0,0.00011401,2]
[421859235,1778237450000,-500.0,0.00011506,2]
[421859240,1778237450000,-500.0,0.00011506,2]
[421859247,1778237450000,-500.0,0.00011506,2]
[421859239,1778237450000,-500.0,0.00011506,2]
[421859245,1778237450000,-500.0,0.00011506,2]
[421859218,1778237450000,-185.0,0.00011261,2]
[421859241,1778237450000,-500.0,0.00011506,2]
[421859243,1778237450000,-500.0,0.00011506,2]
[421859249,1778237450000,-500.0,0.00011506,2]
[421859257,1778237450000,-151.0,0.00011506,2]
[421859256,1778237450000,-500.0,0.00011506,2]
[421859260,1778237450000,-776.62,0.00011506,2]
[421859258,1778237450000,-151.0,0.00011506,2]
[421859251,1778237450000,-500.0,0.00011506,2]
[421859261,1778237450000,-500.0,0.00011506,2]
[421859242,1778237450000,-500.0,0.00011506,2]
[421859259,1778237450000,-500.0,0.00011506,2]
[421859254,1778237450000,-720.28,0.00011506,2]
[421859246,1778237450000,-842.37,0.00011506,2]
[421859248,1778237450000,-500.0,0.00011506,2]
[421859244,1778237450000,-500.0,0.00011506,2]
[421859327,1778237451000,-500.0,0.0001178,2]
[421859334,1778237451000,-500.0,0.0001178,2]
[421859322,1778237451000,-500.0,0.0001178,2]
[421859324,1778237451000,-500.0,0.0001178,2]
[421859326,1778237451000,-500.0,0.0001178,2]
[421859329,1778237451000,-500.0,0.0001178,2]
[421859328,1778237451000,-842.37,0.0001178,2]
[421859339,1778237451000,-500.0,0.0001178,2]
[421859337,1778237451000,-500.0,0.0001178,2]
[421859338,1778237451000,-500.0,0.0001178,2]
[421859330,1778237451000,-500.0,0.0001178,2]
[421859323,1778237451000,-500.0,0.0001178,2]
[421859343,1778237451000,-500.0,0.0001178,2]
[421859333,1778237451000,-393.62,0.0001178,2]
[421859332,1778237451000,-500.0,0.0001178,2]
[421859336,1778237451000,-720.28,0.0001178,2]
[421859335,1778237451000,-747.72,0.0001178,2]
[421859340,1778237451000,-776.62,0.0001178,2]
[421859341,1778237451000,-500.0,0.0001178,2]
[421859342,1778237451000,-500.0,0.0001178,2]
[421859344,1778237451000,-500.0,0.0001178,2]
[421859345,1778237451000,-1339.58,0.0001178,2]
[421859348,1778237451000,-1828.79,0.0001178,2]
[421859347,1778237451000,-500.0,0.0001178,2]
[421859346,1778237451000,-585.7,0.0001178,2]
[421859325,1778237451000,-500.0,0.0001178,2]
[421859331,1778237451000,-500.0,0.0001178,2]
[421859321,1778237451000,-500.0,0.0001178,2]
[421859302,1778237451000,-652.37,0.00011506,2]
[421859317,1778237451000,-500.0,0.0001178,2]
[421859350,1778237451000,-1104.17,0.0001178,2]
[421859293,1778237451000,-500.0,0.00011506,2]
[421859294,1778237451000,-500.0,0.00011506,2]
[421859297,1778237451000,-500.0,0.00011506,2]
[421859292,1778237451000,-615.42,0.00011506,2]
[421859300,1778237451000,-500.0,0.00011506,2]
[421859295,1778237451000,-740.75,0.00011506,2]
[421859299,1778237451000,-500.0,0.00011506,2]
[421859298,1778237451000,-2742.13,0.00011506,2]
[421859296,1778237451000,-500.0,0.00011506,2]
[421859301,1778237451000,-1742.71,0.00011506,2]
[421859303,1778237451000,-152.117416,0.00011506,2]
[421859312,1778237451000,-500.0,0.00011779,2]
[421859313,1778237451000,-500.0,0.00011779,2]
[421859311,1778237451000,-478.26089605,0.00011779,2]
[421859304,1778237451000,-500.0,0.00011506,2]
[421859305,1778237451000,-500.0,0.00011506,2]
[421859310,1778237451000,-5872.71203376,0.00011613,2]
[421859309,1778237451000,-468.23482535,0.00011612,2]
[421859306,1778237451000,-796.52,0.00011506,2]
[421859307,1778237451000,-2166.65298244,0.00011551,2]
[421859308,1778237451000,-9044.117946,0.000116,2]
[421859320,1778237451000,-532.28230712,0.0001178,2]
[421859319,1778237451000,-868.9024,0.0001178,2]
[421859315,1778237451000,-167.6033,0.0001178,2]
[421859318,1778237451000,-500.0,0.0001178,2]
[421859316,1778237451000,-500.0,0.0001178,2]
[421859314,1778237451000,-489.42127565,0.00011779,2]
[421859349,1778237451000,-500.0,0.0001178,2]
[421859398,1778237451000,-842.37,0.00012054,2]
[421859352,1778237451000,-500.0,0.0001178,2]
[421859379,1778237451000,-500.0,0.0001178,2]
[421859382,1778237451000,-652.37,0.0001178,2]
[421859385,1778237451000,-2310.89807206,0.00012042,2]
[421859387,1778237451000,-868.9024,0.00012054,2]
[421859389,1778237451000,-500.0,0.00012054,2]
[421859391,1778237451000,-500.0,0.00012054,2]
[421859390,1778237451000,-500.0,0.00012054,2]
[421859392,1778237451000,-500.0,0.00012054,2]
[421859388,1778237451000,-500.0,0.00012054,2]
[421859393,1778237451000,-500.0,0.00012054,2]
[421859411,1778237451000,-500.0,0.00012054,2]
[421859397,1778237451000,-500.0,0.00012054,2]
[421859394,1778237451000,-500.0,0.00012054,2]
[421859395,1778237451000,-500.0,0.00012054,2]
[421859410,1778237451000,-500.0,0.00012054,2]
[421859400,1778237451000,-500.0,0.00012054,2]
[421859399,1778237451000,-500.0,0.00012054,2]
[421859407,1778237451000,-500.0,0.00012054,2]
[421859404,1778237451000,-747.72,0.00012054,2]
[421859402,1778237451000,-500.0,0.00012054,2]
[421859403,1778237451000,-500.0,0.00012054,2]
[421859401,1778237451000,-500.0,0.00012054,2]
[421859406,1778237451000,-500.0,0.00012054,2]
[421859405,1778237451000,-720.28,0.00012054,2]
[421859408,1778237451000,-500.0,0.00012054,2]
[421859409,1778237451000,-776.62,0.00012054,2]
[421859351,1778237451000,-500.0,0.0001178,2]
[421859384,1778237451000,-500.0,0.0001178,2]
[421859381,1778237451000,-1742.71,0.0001178,2]
[421859396,1778237451000,-500.0,0.00012054,2]
[421859380,1778237451000,-500.0,0.0001178,2]
[421859383,1778237451000,-500.0,0.0001178,2]
[421859353,1778237451000,-500.0,0.0001178,2]
[421859355,1778237451000,-500.0,0.0001178,2]
[421859356,1778237451000,-1084.76,0.0001178,2]
[421859362,1778237451000,-500.0,0.0001178,2]
[421859357,1778237451000,-9994.16,0.0001178,2]
[421859365,1778237451000,-500.0,0.0001178,2]
[421859354,1778237451000,-845.95,0.0001178,2]
[421859364,1778237451000,-511.11,0.0001178,2]
[421859359,1778237451000,-2013.1,0.0001178,2]
[421859361,1778237451000,-821.99,0.0001178,2]
[421859358,1778237451000,-500.0,0.0001178,2]
[421859360,1778237451000,-500.0,0.0001178,2]
[421859366,1778237451000,-787.85,0.0001178,2]
[421859363,1778237451000,-500.0,0.0001178,2]
[421859377,1778237451000,-500.0,0.0001178,2]
[421859368,1778237451000,-559.71,0.0001178,2]
[421859378,1778237451000,-2742.13,0.0001178,2]
[421859386,1778237451000,-155.0,0.00012053,2]
[421859376,1778237451000,-500.0,0.0001178,2]
[421859374,1778237451000,-500.0,0.0001178,2]
[421859375,1778237451000,-740.75,0.0001178,2]
[421859373,1778237451000,-500.0,0.0001178,2]
[421859369,1778237451000,-1327.97,0.0001178,2]
[421859371,1778237451000,-1445.84,0.0001178,2]
[421859370,1778237451000,-1031.51,0.0001178,2]
[421859367,1778237451000,-500.0,0.0001178,2]
[421859372,1778237451000,-615.42,0.0001178,2]
[421859450,1778237452000,-1742.71,0.00012054,2]
[421859449,1778237452000,-500.0,0.00012054,2]
[421859455,1778237452000,-325.5033173,0.0001212,2]
[421859454,1778237452000,-468.23482535,0.00012091,2]
[421859451,1778237452000,-652.37,0.00012054,2]
[421859452,1778237452000,-640.38,0.00012054,2]
[421859444,1778237452000,-740.75,0.00012054,2]
[421859453,1778237452000,-500.0,0.00012054,2]
[421859448,1778237452000,-500.0,0.00012054,2]
[421859447,1778237452000,-2742.13,0.00012054,2]
[421859445,1778237452000,-500.0,0.00012054,2]
[421859460,1778237452000,-500.0,0.00012328,2]
[421859459,1778237452000,-500.0,0.00012328,2]
[421859456,1778237452000,-6765.70684202,0.00012241,2]
[421859461,1778237452000,-500.0,0.00012328,2]
[421859458,1778237452000,-800.0,0.000123,2]
[421859462,1778237452000,-868.9024,0.00012328,2]
[421859473,1778237452000,-500.0,0.00012328,2]
[421859472,1778237452000,-500.0,0.00012328,2]
[421859468,1778237452000,-500.0,0.00012328,2]
[421859470,1778237452000,-842.37,0.00012328,2]
[421859467,1778237452000,-500.0,0.00012328,2]
[421859465,1778237452000,-500.0,0.00012328,2]
[421859474,1778237452000,-500.0,0.00012328,2]
[421859463,1778237452000,-500.0,0.00012328,2]
[421859466,1778237452000,-500.0,0.00012328,2]
[421859469,1778237452000,-500.0,0.00012328,2]
[421859442,1778237452000,-500.0,0.00012054,2]
[421859457,1778237452000,-1000.0,0.000123,3]
[421859446,1778237452000,-500.0,0.00012054,2]
[421859415,1778237452000,-585.7,0.00012054,2]
[421859443,1778237452000,-500.0,0.00012054,2]
[421859413,1778237452000,-500.0,0.00012054,2]
[421859464,1778237452000,-500.0,0.00012328,2]
[421859418,1778237452000,-500.0,0.00012054,2]
[421859414,1778237452000,-1339.58,0.00012054,2]
[421859417,1778237452000,-1828.79,0.00012054,2]
[421859416,1778237452000,-500.0,0.00012054,2]
[421859420,1778237452000,-500.0,0.00012054,2]
[421859419,1778237452000,-1104.17,0.00012054,2]
[421859421,1778237452000,-500.0,0.00012054,2]
[421859412,1778237452000,-500.0,0.00012054,2]
[421859422,1778237452000,-500.0,0.00012054,2]
[421859424,1778237452000,-500.0,0.00012054,2]
[421859432,1778237452000,-500.0,0.00012054,2]
[421859433,1778237452000,-511.11,0.00012054,2]
[421859423,1778237452000,-845.95,0.00012054,2]
[421859434,1778237452000,-500.0,0.00012054,2]
[421859425,1778237452000,-1084.76,0.00012054,2]
[421859426,1778237452000,-9994.16,0.00012054,2]
[421859435,1778237452000,-787.85,0.00012054,2]
[421859431,1778237452000,-500.0,0.00012054,2]
[421859430,1778237452000,-821.99,0.00012054,2]
[421859427,1778237452000,-500.0,0.00012054,2]
[421859428,1778237452000,-2013.1,0.00012054,2]
[421859429,1778237452000,-500.0,0.00012054,2]
[421859436,1778237452000,-500.0,0.00012054,2]
[421859441,1778237452000,-615.42,0.00012054,2]
[421859438,1778237452000,-1327.97,0.00012054,2]
[421859440,1778237452000,-1445.84,0.00012054,2]
[421859439,1778237452000,-1031.51,0.00012054,2]
[421859437,1778237452000,-559.71,0.00012054,2]
[421859471,1778237452000,-500.0,0.00012328,2]
[421859480,1778237452000,-500.0,0.00012328,2]
[421859481,1778237452000,-776.62,0.00012328,2]
[421859509,1778237452000,-559.71,0.00012328,2]
[421859511,1778237452000,-1031.51,0.00012328,2]
[421859507,1778237452000,-787.85,0.00012328,2]
[421859514,1778237452000,-500.0,0.00012328,2]
[421859518,1778237452000,-500.0,0.00012328,2]
[421859521,1778237452000,-500.0,0.00012328,2]
[421859522,1778237452000,-1742.71,0.00012328,2]
[421859519,1778237452000,-2742.13,0.00012328,2]
[421859517,1778237452000,-500.0,0.00012328,2]
[421859516,1778237452000,-740.75,0.00012328,2]
[421859515,1778237452000,-500.0,0.00012328,2]
[421859520,1778237452000,-500.0,0.00012328,2]
[421859523,1778237452000,-652.37,0.00012328,2]
[421859524,1778237452000,-500.0,0.00012328,2]
[421859526,1778237452000,-10000.0,0.000125,2]
[421859525,1778237452000,-10000.0,0.000125,2]
[421859527,1778237452000,-5000.0,0.000125,2]
[421859528,1778237452000,-500.0,0.00012529,2]
[421859539,1778237452000,-500.0,0.00012602,2]
[421859538,1778237452000,-500.0,0.00012602,2]
[421859531,1778237452000,-468.23482535,0.00012571,2]
[421859533,1778237452000,-6014.69,0.000126,2]
[421859476,1778237452000,-747.72,0.00012328,2]
[421859536,1778237452000,-500.0,0.00012602,2]
[421859535,1778237452000,-500.0,0.00012602,2]
[421859537,1778237452000,-500.0,0.00012602,2]
[421859529,1778237452000,-2489.25826266,0.00012532,2]
[421859534,1778237452000,-500.0,0.00012602,2]
[421859532,1778237452000,-10000.0,0.000126,2]
[421859508,1778237452000,-500.0,0.00012328,2]
[421859513,1778237452000,-615.42,0.00012328,2]
[421859530,1778237452000,-7212.20424615,0.00012555,2]
[421859510,1778237452000,-1327.97,0.00012328,2]
[421859512,1778237452000,-1445.84,0.00012328,2]
[421859475,1778237452000,-500.0,0.00012328,2]
[421859482,1778237452000,-500.0,0.00012328,2]
[421859478,1778237452000,-500.0,0.00012328,2]
[421859479,1778237452000,-500.0,0.00012328,2]
[421859483,1778237452000,-500.0,0.00012328,2]
[421859484,1778237452000,-500.0,0.00012328,2]
[421859485,1778237452000,-500.0,0.00012328,2]
[421859486,1778237452000,-1339.58,0.00012328,2]
[421859494,1778237452000,-500.0,0.00012328,2]
[421859495,1778237452000,-845.95,0.00012328,2]
[421859499,1778237452000,-500.0,0.00012328,2]
[421859497,1778237452000,-1084.76,0.00012328,2]
[421859498,1778237452000,-9994.16,0.00012328,2]
[421859477,1778237452000,-720.28,0.00012328,2]
[421859487,1778237452000,-585.7,0.00012328,2]
[421859496,1778237452000,-500.0,0.00012328,2]